bitfinex/quotes_BTCUSD_20250114
["timestamp","ask_amount","ask_price","bid_price","bid_amount"]
[1736842512580,0.00014561,95680.0,95679.0,0.01212]
[1736842513322,0.00014561,95680.0,95679.0,0.00612]
[1736842513559,0.20917561,95680.0,95679.0,0.00612]
[1736842513798,0.00014561,95680.0,95679.0,0.01012]
[1736842513998,0.00014561,95680.0,95679.0,0.01112]
[1736842514403,0.00014561,95680.0,95679.0,0.01012]
[1736842514601,0.00014561,95680.0,95679.0,1.51012]
[1736842514773,0.00014561,95680.0,95679.0,1.51112]
[1736842516739,0.00014561,95680.0,95679.0,1.505]
[1736842516952,0.00014561,95680.0,95679.0,1.5112]
[1736842517160,0.00014561,95680.0,95679.0,1.61577024]
[1736842517505,1.982e-05,95680.0,95679.0,1.61577024]
[1736842518273,1.982e-05,95680.0,95679.0,1.62542549]
[1736842519427,1.982e-05,95680.0,95679.0,1.61922549]
[1736842519629,1.982e-05,95680.0,95679.0,1.62542549]
[1736842520086,1.982e-05,95680.0,95679.0,1.63373718]
[1736842520823,1.982e-05,95680.0,95679.0,1.62753718]
[1736842521024,1.982e-05,95680.0,95679.0,1.51465409]
[1736842521234,1.982e-05,95680.0,95679.0,1.52085409]
[1736842523902,1.982e-05,95680.0,95679.0,1.51465409]
[1736842524125,1.982e-05,95680.0,95679.0,1.52085409]
[1736842524454,1.982e-05,95680.0,95679.0,1.5112]
[1736842524885,1.982e-05,95680.0,95679.0,1.505]
[1736842525032,1.982e-05,95680.0,95679.0,1.5112]
[1736842526329,1.982e-05,95680.0,95679.0,1.51299151]
[1736842529082,0.07841982,95680.0,95679.0,1.51299151]
[1736842530038,1.982e-05,95680.0,95679.0,1.73169335]
[1736842530924,1.982e-05,95680.0,95679.0,1.83626359]
[1736842532519,1.982e-05,95680.0,95679.0,1.98626359]
[1736842532742,1.982e-05,95680.0,95679.0,1.99692139]
[1736842534659,1.982e-05,95680.0,95679.0,2.00550841]
[1736842535862,1.982e-05,95680.0,95679.0,2.03772184]
[1736842536466,1.982e-05,95680.0,95679.0,2.028052]
[1736842537699,1.982e-05,95680.0,95679.0,2.027052]
[1736842538079,2e-08,95682.0,95681.0,0.0106578]
[1736842538295,2e-08,95682.0,95681.0,0.32148626]
[1736842538494,2e-08,95682.0,95681.0,0.32664147]
[1736842538666,2e-08,95682.0,95681.0,0.73683609]
[1736842538900,2e-08,95682.0,95681.0,2.23683609]
[1736842539102,2e-08,95682.0,95681.0,2.31853609]
[1736842539260,2e-08,95682.0,95681.0,1.90834147]
[1736842539661,2e-08,95682.0,95681.0,2.12704396]
[1736842540228,2e-08,95682.0,95681.0,2.54436929]
[1736842540372,2e-08,95682.0,95681.0,2.55336929]
[1736842541428,2e-08,95682.0,95681.0,2.14304396]
[1736842542051,2e-08,95682.0,95681.0,2.55336929]
[1736842543245,2e-08,95682.0,95681.0,2.44246929]
[1736842543454,2e-08,95682.0,95681.0,2.39959806]
[1736842543661,2e-08,95682.0,95681.0,2.41645586]
[1736842543867,2e-08,95682.0,95681.0,2.39959806]
[1736842544162,2e-08,95682.0,95681.0,2.00613053]
[1736842544975,2e-08,95682.0,95681.0,1.99547273]
[1736842545175,2e-08,95682.0,95681.0,1.99913053]
[1736842545610,2e-08,95682.0,95681.0,2.00313053]
[1736842545790,2e-08,95682.0,95681.0,1.99413053]
[1736842545992,2e-08,95682.0,95681.0,1.99013053]
[1736842546546,2e-08,95682.0,95681.0,2.00313053]
[1736842547488,2e-08,95682.0,95681.0,2.03533693]
[1736842547694,2e-08,95682.0,95681.0,2.31332442]
[1736842548114,2e-08,95682.0,95681.0,2.03533693]
[1736842548694,2e-08,95682.0,95681.0,2.03133693]
[1736842548855,0.00100002,95682.0,95681.0,2.03133693]
[1736842549071,0.00100002,95682.0,95681.0,2.26047193]
[1736842549267,2e-08,95682.0,95681.0,2.03133693]
[1736842549468,2e-08,95682.0,95681.0,2.02233693]
[1736842549670,0.00100002,95682.0,95681.0,2.02333693]
[1736842549929,2e-08,95682.0,95681.0,2.02233693]
[1736842550326,2e-08,95682.0,95681.0,2.03113693]
[1736842550571,2e-08,95682.0,95681.0,2.03733693]
[1736842550968,2e-08,95682.0,95681.0,2.02833693]
[1736842551399,2e-08,95682.0,95681.0,2.00513053]
[1736842551603,2e-08,95682.0,95681.0,2.03734425]
[1736842551788,2e-08,95682.0,95681.0,1.99447273]
[1736842551921,2e-08,95682.0,95681.0,2.00092204]
[1736842552586,2e-08,95682.0,95681.0,2.00692204]
[1736842552779,2e-08,95682.0,95681.0,1.99626424]
[1736842552975,2e-08,95682.0,95681.0,2.00092204]
[1736842553182,2e-08,95682.0,95681.0,1.99192204]
[1736842553386,2e-08,95682.0,95681.0,2.00592204]
[1736842553648,2e-08,95682.0,95681.0,1.99526424]
[1736842553805,2e-08,95682.0,95681.0,2.00592204]
[1736842553999,2e-08,95682.0,95681.0,1.99972204]
[1736842554204,2e-08,95682.0,95681.0,2.00592204]
[1736842555169,2e-08,95682.0,95681.0,2.00092204]
[1736842555373,2e-08,95682.0,95681.0,2.00492204]
[1736842555797,2e-08,95682.0,95681.0,1.99872204]
[1736842556020,2e-08,95682.0,95681.0,2.00092204]
[1736842556219,2e-08,95682.0,95681.0,1.99592204]
[1736842556435,2e-08,95682.0,95681.0,2.00492204]
[1736842556815,2e-08,95682.0,95681.0,1.97506424]
[1736842556994,2e-08,95682.0,95681.0,1.7373518]
[1736842557248,2e-08,95682.0,95681.0,1.8921518]
[1736842557621,2e-08,95682.0,95681.0,1.678667]
[1736842557863,2e-08,95682.0,95681.0,0.028667]
[1736842558065,2e-08,95682.0,95681.0,0.020667]
[1736842558236,0.07660002,95682.0,95681.0,0.014467]
[1736842558445,0.07660002,95682.0,95681.0,0.017667]
[1736842558845,0.07660002,95682.0,95681.0,0.014467]
[1736842559251,0.07660002,95682.0,95681.0,0.011467]
[1736842559252,0.12350002,95682.0,95681.0,0.011467]
[1736842559611,0.12350002,95682.0,95681.0,0.00279151]
[1736842559980,0.12350002,95682.0,95681.0,0.01079151]
[1736842560110,0.22350002,95682.0,95681.0,0.00979151]
[1736842560321,0.22350002,95682.0,95681.0,0.00179151]
[1736842560322,0.32807026,95682.0,95681.0,0.00179151]
[1736842560729,0.434049,95671.0,95670.0,0.05]
[1736842560929,0.53861924,95671.0,95670.0,0.05014561]
[1736842561359,0.62796144,95671.0,95670.0,0.05014561]
[1736842561735,0.284584,95655.0,95654.0,0.00179151]
[1736842563305,0.0755,95655.0,95654.0,0.00179151]
[1736842564085,0.0785,95655.0,95654.0,0.00179151]
[1736842564253,0.0755,95655.0,95654.0,0.00179151]
[1736842564618,0.0775,95655.0,95654.0,0.00179151]
[1736842565662,0.0785,95655.0,95654.0,0.00179151]
[1736842565865,0.1785,95655.0,95654.0,0.00179151]
[1736842566069,0.1775,95655.0,95654.0,0.00179151]
[1736842566430,0.1785,95655.0,95654.0,0.00160628]
[1736842567443,0.1785,95655.0,95654.0,0.20160628]
[1736842567872,0.28307024,95655.0,95654.0,0.20160628]
[1736842568079,0.37241244,95655.0,95654.0,0.20160628]
[1736842569037,0.42191244,95655.0,95654.0,0.12350628]
[1736842569316,0.42191244,95655.0,95654.0,0.07350628]
[1736842569541,0.44491244,95655.0,95654.0,0.07350628]
[1736842569911,0.44491244,95655.0,95635.0,0.0017892]
[1736842569912,0.309126,95636.0,95635.0,0.0017892]
[1736842570104,0.53869624,95636.0,95635.0,0.0017892]
[1736842570391,0.2388422,95630.0,95629.0,0.00178941]
[1736842570585,0.44191244,95630.0,95629.0,0.00178941]
[1736842570761,0.4740032,95620.0,95597.0,1.5]
[1736842570961,0.62807344,95620.0,95597.0,1.5]
[1736842571167,0.434161,95620.0,95597.0,1.5]
[1736842571368,0.434161,95620.0,95602.0,0.0062]
[1736842571885,0.53873124,95620.0,95597.0,1.5]
[1736842572086,0.62807344,95620.0,95619.0,0.00193525]
[1736842572291,0.0755,95598.0,95585.0,0.00179025]
[1736842572493,0.0755,95598.0,95585.0,0.00227569]
[1736842572691,0.0495,95608.0,95596.0,0.209211]
[1736842572904,0.12620779,95630.0,95588.0,0.12620779]
[1736842572905,0.209165,95619.0,95598.0,0.209209]
[1736842573074,0.209169,95617.0,95597.0,1.5062]
[1736842573295,0.209169,95617.0,95603.0,0.209197]
[1736842573645,0.209178,95612.0,95599.0,0.209207]
[1736842573770,0.209178,95612.0,95606.0,1.5]
[1736842573980,0.209173,95615.0,95606.0,1.5]
[1736842574182,0.009,95620.0,95604.0,0.418392]
[1736842574364,0.009,95620.0,95608.0,0.0106578]
[1736842574564,0.421322,95620.0,95609.0,0.0062]
[1736842574810,0.212161,95620.0,95619.0,1.5]
[1736842575021,0.1,95617.0,95589.0,0.0106578]
[1736842575216,0.209201,95602.0,95590.0,0.0062]
[1736842575440,0.209187,95609.0,95594.0,0.15]
[1736842575619,0.209195,95605.0,95601.0,1.5]
[1736842575832,0.002,95612.0,95596.0,0.0106578]
[1736842576003,0.002,95612.0,95610.0,0.209181]
[1736842576207,4.846e-05,95613.0,95612.0,0.209178]
[1736842577054,4.846e-05,95613.0,95612.0,0.215338]
[1736842577695,0.00304846,95613.0,95612.0,0.215338]
[1736842578076,0.00304846,95613.0,95612.0,0.00616]
[1736842578801,0.00304846,95613.0,95607.0,0.0106578]
[1736842578952,0.00504846,95613.0,95608.0,0.209187]
[1736842579160,0.00504846,95613.0,95610.0,0.209183]
[1736842579361,0.00504846,95613.0,95611.0,0.00616]
[1736842579764,0.00304846,95613.0,95606.0,0.15]
[1736842579943,0.00204846,95613.0,95612.0,0.00616]
[1736842580329,0.00504846,95613.0,95612.0,0.00616]
[1736842580561,4.846e-05,95613.0,95612.0,0.00616]
[1736842580982,0.00304846,95613.0,95612.0,1.50616]
[1736842581195,4.846e-05,95613.0,95612.0,1.50616]
[1736842581639,0.00304846,95613.0,95612.0,1.50616]
[1736842581843,0.00204846,95613.0,95612.0,1.50616]
[1736842582510,4.846e-05,95613.0,95612.0,1.50616]
[1736842582659,4.846e-05,95613.0,95612.0,1.50816]
[1736842583274,4.846e-05,95613.0,95612.0,1.51316]
[1736842583650,4.846e-05,95613.0,95612.0,1.51116]
[1736842584129,4.846e-05,95613.0,95612.0,1.50616]
[1736842584267,4.846e-05,95613.0,95612.0,1.51216]
[1736842584681,4.846e-05,95613.0,95612.0,1.50616]
[1736842584878,4.846e-05,95613.0,95612.0,1.51216]
[1736842585500,4.846e-05,95613.0,95612.0,1.505]
[1736842585683,4.846e-05,95613.0,95612.0,1.52080659]
[1736842586015,4.846e-05,95613.0,95612.0,1.52280659]
[1736842586151,4.846e-05,95613.0,95612.0,1.51164659]
[1736842586350,4.846e-05,95613.0,95612.0,1.50964659]
[1736842586551,4.846e-05,95613.0,95612.0,1.51764659]
[1736842586982,4.846e-05,95613.0,95612.0,1.51064659]
[1736842587182,4.846e-05,95613.0,95612.0,1.501]
[1736842587425,4.846e-05,95613.0,95612.0,1.504]
[1736842587628,4.846e-05,95613.0,95612.0,1.501]
[1736842588060,4.846e-05,95613.0,95612.0,1.5]
[1736842588865,4.846e-05,95613.0,95612.0,1.502]
[1736842589009,4.846e-05,95613.0,95612.0,0.002]
[1736842589431,4.846e-05,95613.0,95612.0,0.01167672]
[1736842591654,4.846e-05,95613.0,95612.0,0.00967672]
[1736842592277,0.00304846,95613.0,95612.0,0.00967672]
[1736842595265,0.00304846,95613.0,95612.0,1.50967672]
[1736842595439,0.00304846,95613.0,95612.0,0.00967672]
[1736842597286,0.10304846,95613.0,95612.0,0.00967672]
[1736842599366,0.10304846,95613.0,95612.0,0.01146928]
[1736842599884,0.35759646,95613.0,95612.0,0.01146928]
[1736842600072,0.4185609,95613.0,95612.0,0.01146928]
[1736842600456,0.4415609,95613.0,95612.0,0.01146928]
[1736842600676,0.46227301,95613.0,95612.0,0.01146928]
[1736842601017,0.45927301,95613.0,95612.0,0.00179256]
[1736842601258,0.56384325,95613.0,95612.0,0.00179256]
[1736842601466,0.46327301,95613.0,95612.0,0.00179256]
[1736842601823,0.45927301,95613.0,95612.0,0.00179256]
[1736842602627,0.3262187,95613.0,95612.0,0.00179256]
[1736842602874,4.846e-05,95613.0,95612.0,0.00179256]
[1736842603479,0.08939066,95613.0,95612.0,0.00179256]
[1736842603701,0.10604846,95613.0,95612.0,0.00279256]
[1736842603900,0.00604846,95613.0,95612.0,0.00279256]
[1736842604079,4.846e-05,95613.0,95612.0,0.00179256]
[1736842604280,0.00704846,95613.0,95612.0,0.00179256]
[1736842604831,4.846e-05,95613.0,95612.0,0.00179256]
[1736842605132,0.00804846,95613.0,95612.0,0.00179256]
[1736842605337,0.2066187,95613.0,95612.0,0.00179256]
[1736842605720,0.2116187,95613.0,95612.0,0.00179256]
[1736842608834,0.2232115,95613.0,95612.0,0.00179256]
[1736842609086,0.2116187,95613.0,95612.0,0.00179256]
[1736842609454,0.22109471,95613.0,95612.0,0.00179256]
[1736842610021,0.24409471,95613.0,95612.0,0.00179256]
[1736842610168,0.45503691,95613.0,95612.0,0.00179256]
[1736842610921,0.45003691,95613.0,95612.0,0.00179256]
[1736842611122,0.45403691,95613.0,95612.0,0.00279256]
[1736842611453,0.45503691,95613.0,95612.0,0.00279256]
[1736842611580,0.55960715,95613.0,95612.0,0.00279256]
[1736842611781,0.309215,95595.0,95585.0,0.00179025]
[1736842611977,0.41378524,95595.0,95585.0,0.00179025]
[1736842613156,0.41578524,95595.0,95585.0,0.00179025]
[1736842613723,0.41878524,95595.0,95585.0,0.00179025]
[1736842614529,0.42827428,95595.0,95585.0,0.00179025]
[1736842614722,0.52717428,95595.0,95585.0,0.00179025]
[1736842615126,0.62173341,95595.0,95585.0,0.00179025]
[1736842615506,0.52717428,95595.0,95585.0,0.00179025]
[1736842616266,0.61651648,95595.0,95585.0,0.00179025]
[1736842617033,0.61351648,95595.0,95585.0,0.00179025]
[1736842617390,0.64006925,95595.0,95594.0,0.00279256]
[1736842617659,0.011,95595.0,95594.0,0.00279256]
[1736842618126,0.011,95595.0,95594.0,0.0096583]
[1736842618392,0.011,95595.0,95594.0,0.00255736]
[1736842618393,0.003,95595.0,95594.0,0.00255736]
[1736842618608,0.003,95595.0,95594.0,0.00355736]
[1736842618609,0.012,95595.0,95594.0,0.00355736]
[1736842618822,0.21657024,95595.0,95594.0,0.00355736]
[1736842619201,0.21657024,95595.0,95594.0,0.00279256]
[1736842619408,0.21357024,95595.0,95594.0,0.00279256]
[1736842619813,0.21757024,95595.0,95594.0,0.00279256]
[1736842620294,0.21357024,95595.0,95594.0,0.00279256]
[1736842620531,0.20457024,95595.0,95594.0,0.00179256]
[1736842620752,0.20557024,95595.0,95594.0,0.00179256]
[1736842621152,0.20457024,95595.0,95594.0,0.00179256]
[1736842621352,0.23157024,95595.0,95594.0,0.00179256]
[1736842622595,0.20857024,95595.0,95594.0,0.00179256]
[1736842624251,0.20857024,95595.0,95594.0,0.00160736]
[1736842631970,0.29791244,95595.0,95594.0,0.00160736]
[1736842634467,0.37451244,95595.0,95594.0,0.00160736]
[1736842635550,0.37351244,95595.0,95594.0,0.00160736]
[1736842635748,0.37751244,95595.0,95594.0,0.00160736]
[1736842635995,0.37451244,95595.0,95594.0,0.00160736]
[1736842636373,0.38351244,95595.0,95594.0,0.00260736]
[1736842638197,0.309235,95586.0,95585.0,0.00179025]
[1736842638419,0.41380524,95586.0,95585.0,0.00179025]
[1736842639607,0.50914744,95586.0,95585.0,0.00179025]
[1736842640349,0.50714744,95586.0,95585.0,0.00179025]
[1736842640602,0.1893422,95584.0,95583.0,0.00179046]
[1736842640859,0.37051244,95584.0,95583.0,0.00179046]
[1736842641842,0.10457024,95584.0,95583.0,0.00179046]
[1736842642080,0.209237,95585.0,95583.0,0.0022759]
[1736842642319,0.009,95584.0,95583.0,0.0032759]
[1736842642554,0.013,95584.0,95583.0,0.0032759]
[1736842643010,0.009,95584.0,95583.0,0.0032759]
[1736842643850,0.31480824,95585.0,95583.0,0.0022759]
[1736842644284,0.31780824,95585.0,95583.0,0.0022759]
[1736842644548,0.001,95585.0,95583.0,0.0022759]
[1736842644801,0.209225,95591.0,95583.0,0.2115179]
[1736842644802,0.209226,95591.0,95583.0,0.2115179]
[1736842645043,0.003,95584.0,95583.0,0.2115179]
[1736842645264,0.001,95584.0,95583.0,0.0022759]
[1736842645492,0.002,95585.0,95583.0,0.0022759]
[1736842645730,0.209226,95591.0,95583.0,0.0022759]
[1736842645955,0.001,95585.0,95583.0,0.0022759]
[1736842646498,0.209226,95591.0,95583.0,0.0022759]
[1736842646733,0.001,95584.0,95583.0,0.0022759]
[1736842647256,0.001,95584.0,95583.0,0.0032759]
[1736842647829,0.001,95584.0,95583.0,0.0022759]
[1736842648355,0.000853,95595.0,95588.0,0.209229]
[1736842648609,0.000853,95595.0,95593.0,0.0824]
[1736842649145,0.000853,95595.0,95593.0,0.29162]
[1736842649622,0.000853,95595.0,95594.0,1.5]
[1736842651275,0.001853,95595.0,95594.0,1.5]
[1736842653517,0.1,95623.0,95594.0,1.5]
[1736842653518,0.09313179,95640.0,95606.0,0.1]
[1736842653743,0.02164106,95660.0,95641.0,0.0106578]
[1736842653959,0.08198822,95645.0,95644.0,0.1336578]
[1736842654171,0.13801839,95647.0,95646.0,0.1106578]
[1736842654379,0.07114274,95655.0,95654.0,0.4927438]
[1736842654591,0.000852,95690.0,95681.0,0.4453848]
[1736842654821,0.000852,95690.0,95681.0,0.4515048]
[1736842655033,0.000852,95690.0,95681.0,0.55607504]
[1736842655263,0.00014557,95682.0,95681.0,0.55607504]
[1736842655478,0.000852,95690.0,95687.0,0.3696718]
[1736842655681,0.000852,95690.0,95687.0,0.49724204]
[1736842656544,0.000852,95690.0,95687.0,0.50336204]
[1736842656714,0.000852,95690.0,95687.0,0.47424204]
[1736842656919,0.000852,95690.0,95687.0,0.48036204]
[1736842657126,0.000852,95690.0,95687.0,1.98036204]
[1736842657736,0.0024892,95688.0,95687.0,1.99536204]
[1736842658093,0.0024892,95688.0,95687.0,2.01836204]
[1736842658518,0.0004892,95688.0,95687.0,2.93490551]
[1736842658863,0.0014892,95688.0,95687.0,2.70446951]
[1736842659101,0.0024892,95688.0,95687.0,2.67552151]
[1736842659518,0.0008536,95715.0,95687.0,2.67552151]
[1736842659519,0.0008536,95715.0,95707.0,0.0106578]
[1736842659733,0.1383422,95788.0,95687.0,2.48752742]
[1736842659734,0.1,95766.0,95717.0,0.023]
[1736842659930,0.00148565,95750.0,95749.0,0.3695368]
[1736842660137,0.00148565,95750.0,95749.0,0.3760968]
[1736842660344,0.00148565,95750.0,95749.0,1.8695368]
[1736842660548,0.00148565,95750.0,95749.0,2.08449907]
[1736842660988,0.00348565,95750.0,95749.0,2.08449907]
[1736842661201,0.00348565,95750.0,95749.0,2.06326136]
[1736842661416,0.0008539,95784.0,95762.0,0.3695088]
[1736842661417,0.05676904,95763.0,95762.0,0.3695088]
[1736842661653,0.05691467,95763.0,95762.0,0.47387928]
[1736842661865,0.05691467,95763.0,95762.0,0.54211173]
[1736842662072,0.0008539,95784.0,95766.0,0.01045804]
[1736842662294,0.0008539,95784.0,95776.0,0.24227804]
[1736842662498,0.0008539,95784.0,95776.0,0.57254828]
[1736842662713,0.0008539,95784.0,95776.0,0.9185583]
[1736842662934,0.0008539,95784.0,95776.0,2.35945679]
[1736842663137,0.0008539,95784.0,95776.0,2.20996879]
[1736842663566,0.0008539,95784.0,95783.0,0.41926304]
[1736842663764,0.0008539,95784.0,95783.0,0.69683328]
[1736842663966,9e-07,95784.0,95783.0,1.38318528]
[1736842664193,9e-07,95784.0,95783.0,0.70337853]
[1736842664418,7e-08,95789.0,95788.0,0.36045804]
[1736842664631,7e-08,95789.0,95788.0,0.48802828]
[1736842664822,0.511074,95800.0,95799.0,0.56922804]
[1736842664823,0.48269707,95800.0,95799.0,0.56922804]
[1736842665107,0.48275036,95800.0,95799.0,0.69679828]
[1736842665305,0.39247991,95800.0,95799.0,0.92464865]
[1736842665542,0.00031748,95820.0,95803.0,0.173]
[1736842665725,0.00031748,95820.0,95803.0,1.61270879]
[1736842665927,0.00031748,95820.0,95803.0,2.15124728]
[1736842666170,0.00031748,95820.0,95814.0,0.36919504]
[1736842666371,0.00031748,95820.0,95814.0,0.85919628]
[1736842666500,0.00031748,95820.0,95814.0,0.74181728]
[1736842667131,0.00031748,95820.0,95814.0,2.24181728]
[1736842667379,0.00031748,95820.0,95814.0,2.44181728]
[1736842667589,0.00031748,95820.0,95819.0,0.36045804]
[1736842667801,0.00031748,95820.0,95819.0,0.37158828]
[1736842668014,0.00031748,95820.0,95819.0,0.47158828]
[1736842668215,0.00031748,95820.0,95819.0,3.95096128]
[1736842668420,0.00031748,95820.0,95819.0,3.75558328]
[1736842668632,0.00031748,95820.0,95819.0,3.52214328]
[1736842668832,0.00031748,95820.0,95819.0,3.51403928]
[1736842669210,0.00031748,95820.0,95819.0,3.52050608]
[1736842669419,0.08030352,95827.0,95826.0,0.36916904]
[1736842669626,0.08030352,95827.0,95826.0,0.49673928]
[1736842669990,0.08030352,95827.0,95826.0,0.48019083]
[1736842670193,0.08030352,95827.0,95826.0,0.16690959]
[1736842670551,0.08030352,95827.0,95826.0,0.17346959]
[1736842670737,0.08030352,95827.0,95826.0,0.27803983]
[1736842670962,0.08030352,95827.0,95826.0,0.49575083]
[1736842671162,0.08030352,95827.0,95826.0,0.48675083]
[1736842671542,0.08030352,95827.0,95826.0,0.48619083]
[1736842671998,0.08030352,95827.0,95826.0,0.49275083]
[1736842672406,0.08030352,95827.0,95826.0,0.48619083]
[1736842672633,0.08030352,95827.0,95826.0,0.49275083]
[1736842672812,0.08030352,95827.0,95826.0,0.48814756]
[1736842673214,0.08030352,95827.0,95826.0,0.48458756]
[1736842673413,0.08030352,95827.0,95826.0,0.49114756]
[1736842674101,0.08030352,95827.0,95826.0,0.51414756]
[1736842674307,0.08030352,95827.0,95826.0,0.49114756]
[1736842674521,0.08030352,95827.0,95826.0,0.48158756]
[1736842674723,0.08030352,95827.0,95826.0,0.48458756]
[1736842674945,0.08030352,95827.0,95826.0,0.48558756]
[1736842675145,0.08030352,95827.0,95826.0,0.49214756]
[1736842675484,0.08030352,95827.0,95826.0,0.48458756]
[1736842675711,0.08030352,95827.0,95826.0,0.49514756]
[1736842675882,0.08030352,95827.0,95826.0,0.49114756]
[1736842676267,0.08030352,95827.0,95826.0,0.50014756]
[1736842677124,0.08030352,95827.0,95826.0,1.98714756]
[1736842677326,0.08030352,95827.0,95826.0,1.99614756]
[1736842677759,0.08030352,95827.0,95826.0,2.01014756]
[1736842677989,0.08030352,95827.0,95826.0,2.02314756]
[1736842678422,0.08030352,95827.0,95826.0,2.01914756]
[1736842678626,0.08030352,95827.0,95826.0,1.98958756]
[1736842678843,0.08030352,95827.0,95826.0,1.99358756]
[1736842679199,0.08030352,95827.0,95826.0,2.00014756]
[1736842679814,0.0001266,95835.0,95828.0,0.01045804]
[1736842679999,0.0001266,95835.0,95828.0,0.27158828]
[1736842680000,0.00182566,95829.0,95828.0,0.27158828]
[1736842680203,0.00182566,95829.0,95828.0,0.27842299]
[1736842680445,0.00182566,95829.0,95828.0,0.17385275]
[1736842680649,0.00182566,95829.0,95828.0,1.67385275]
[1736842681007,0.00182566,95829.0,95828.0,1.51729275]
[1736842681203,0.00182566,95829.0,95828.0,1.52385275]
[1736842681405,0.00182566,95829.0,95828.0,1.52629275]
[1736842681698,0.00182566,95829.0,95828.0,1.50683471]
[1736842681937,0.00182566,95829.0,95828.0,1.50983471]
[1736842682352,0.00182566,95829.0,95828.0,1.50683471]
[1736842682780,0.00182566,95829.0,95828.0,1.98056999]
[1736842682989,0.00182566,95829.0,95828.0,1.98656999]
[1736842683397,0.00182566,95829.0,95828.0,1.98056999]
[1736842683601,0.00182566,95829.0,95828.0,1.98256999]
[1736842683814,0.00182566,95829.0,95828.0,2.43683499]
[1736842684016,0.00182566,95829.0,95828.0,2.44139499]
[1736842684225,0.00173349,95829.0,95828.0,2.47339499]
[1736842684432,0.00173349,95829.0,95828.0,2.52569557]
[1736842684670,0.00173349,95829.0,95828.0,2.44556357]
[1736842684873,0.00173349,95829.0,95828.0,2.41369057]
[1736842685082,0.00173349,95829.0,95828.0,2.33831957]
[1736842685301,0.00173349,95829.0,95828.0,2.28674657]
[1736842685501,0.00173349,95829.0,95828.0,2.17635757]
[1736842685705,0.00173349,95829.0,95828.0,2.17966438]
[1736842685926,0.00173349,95829.0,95828.0,2.03887057]
[1736842686130,0.00173349,95829.0,95828.0,2.02813782]
[1736842686340,0.00610683,95830.0,95828.0,0.36913782]
[1736842686546,0.00610683,95830.0,95829.0,0.25457024]
[1736842686952,0.00610683,95830.0,95829.0,0.26113024]
[1736842687204,0.00610683,95830.0,95829.0,1.65656]
[1736842687398,0.13510683,95830.0,95829.0,1.5]
[1736842687572,0.13510683,95830.0,95829.0,1.50656]
[1736842688214,0.13510683,95830.0,95829.0,1.509]
[1736842688425,0.13510683,95830.0,95829.0,1.52796176]
[1736842688628,0.34380883,95830.0,95829.0,1.53196176]
[1736842688962,0.13510683,95830.0,95829.0,1.53196176]
[1736842689176,0.34380883,95830.0,95829.0,0.02796176]
[1736842689378,0.34380883,95830.0,95829.0,0.01896176]
[1736842689582,0.34380883,95830.0,95829.0,0.02696176]
[1736842689965,0.34380883,95830.0,95829.0,0.0496424]
[1736842690171,0.208735,95815.0,95805.0,0.0066]
[1736842690372,0.13510683,95830.0,95814.0,0.00193256]
[1736842690575,0.208734,95816.0,95814.0,0.00193256]
[1736842690787,0.20457024,95815.0,95814.0,0.00193256]
[1736842690995,0.33357024,95815.0,95814.0,0.00193256]
[1736842691209,0.417496,95809.0,95806.0,0.00768623]
[1736842691423,0.62206624,95809.0,95806.0,0.00768623]
[1736842691638,0.308753,95807.0,95806.0,0.00768623]
[1736842691846,0.208811,95781.0,95773.0,0.0066]
[1736842692056,0.208803,95784.0,95773.0,0.0066]
[1736842692269,0.0494,95782.0,95779.0,0.00769775]
[1736842693118,0.208809,95781.0,95780.0,1.5]
[1736842693529,0.208809,95781.0,95780.0,0.00712437]
[1736842693894,0.208809,95781.0,95779.0,0.002]
[1736842694297,0.208809,95781.0,95762.0,0.0066]
[1736842694298,0.208841,95767.0,95762.0,0.0066]
[1736842694522,0.1,95780.0,95755.0,0.0066]
[1736842694758,0.0494,95782.0,95755.0,0.0066]
[1736842694759,0.0494,95782.0,95763.0,0.00723976]
[1736842695001,0.208825,95774.0,95760.0,0.208855]
[1736842695255,0.41765,95774.0,95758.0,0.208859]
[1736842695424,0.208814,95779.0,95762.0,0.209849]
[1736842695658,0.0494,95782.0,95777.0,0.208817]
[1736842695859,0.0494,95782.0,95778.0,0.15]
[1736842696065,0.0494,95782.0,95780.0,0.15]
[1736842696274,0.0494,95782.0,95781.0,0.358809]
[1736842696453,0.0494,95782.0,95781.0,0.15654961]
[1736842696804,0.0494,95782.0,95781.0,0.26111985]
[1736842697008,0.0796,95796.0,95781.0,0.00654961]
[1736842697260,0.0796,95796.0,95787.0,0.208795]
[1736842697467,0.0796,95796.0,95764.0,0.001044]
[1736842697468,0.0796,95796.0,95792.0,0.208784]
[1736842697867,0.0796,95796.0,95793.0,0.00062797]
[1736842698292,0.0796,95796.0,95794.0,0.208781]
[1736842698497,0.0796,95796.0,95793.0,0.00062337]
[1736842698699,0.0796,95796.0,95795.0,0.0005483]
[1736842698877,0.0796,95796.0,95794.0,0.00055291]
[1736842699093,0.0796,95796.0,95792.0,0.0066]
[1736842699094,0.0796,95796.0,95795.0,0.0005483]
[1736842699298,0.0492,95799.0,95795.0,0.3593273]
[1736842699496,0.0492,95799.0,95795.0,0.15651909]
[1736842699672,0.0492,95799.0,95796.0,0.208776]
[1736842700669,0.0492,95799.0,95796.0,0.417552]
[1736842700930,0.0492,95799.0,95795.0,0.15651909]
[1736842701159,0.257971,95799.0,95796.0,0.0066]
[1736842702163,0.0492,95799.0,95797.0,1.5]
[1736842702351,0.0492,95799.0,95797.0,1.51916844]
[1736842702697,0.0492,95799.0,95797.0,1.51970753]
[1736842703880,0.0492,95799.0,95798.0,0.01916844]
[1736842704301,0.0492,95799.0,95798.0,0.01970293]
[1736842704459,0.0492,95799.0,95798.0,1.51970293]
[1736842708903,0.0492,95799.0,95798.0,1.55040012]
[1736842709139,0.0492,95799.0,95798.0,1.7806039]
[1736842709759,0.0492,95799.0,95798.0,1.55040012]
[1736842709975,0.0492,95799.0,95798.0,1.66970293]
[1736842710184,0.0008511,95806.0,95799.0,0.15]
[1736842710389,0.0008511,95806.0,95801.0,0.15]
[1736842710595,0.0008511,95806.0,95801.0,0.25457024]
[1736842710808,0.0008511,95806.0,95805.0,1.858757]
[1736842711012,0.0008511,95806.0,95805.0,1.96332724]
[1736842711417,0.0008511,95806.0,95805.0,1.9704029]
[1736842711626,0.0008511,95806.0,95805.0,2.8751009]
[1736842711811,0.0008511,95806.0,95805.0,2.79099813]
[1736842712015,0.0008511,95806.0,95805.0,2.79399813]
[1736842712657,0.0008511,95806.0,95805.0,2.84385364]
[1736842713271,0.0008511,95806.0,95805.0,2.83725364]
[1736842713574,0.0008511,95806.0,95805.0,2.84385364]
[1736842713978,0.0008511,95806.0,95805.0,2.85035094]